bitfinex/quotes_ETHUSD_20240917
["timestamp","ask_amount","ask_price","bid_price","bid_amount"]
[1726549935611,0.08689017,2297.6,2297.3,1.44340817]
[1726549936144,0.08689017,2297.6,2297.3,5.79621817]
[1726549941310,0.08689017,2297.6,2297.4,1.34232477]
[1726549941513,0.08689017,2297.6,2297.3,5.79621817]
[1726549941747,0.08689017,2297.6,2297.4,1.34236887]
[1726549941951,0.08689017,2297.6,2297.3,5.79621817]
[1726549942261,0.08689017,2297.6,2297.4,3.35706909]
[1726549942415,0.08689017,2297.6,2297.3,6.701317]
[1726549942616,0.08689017,2297.6,2297.4,3.35789486]
[1726549942914,0.08689017,2297.6,2297.3,6.701317]
[1726549943131,0.08689017,2297.6,2297.4,3.35787193]
[1726549943377,0.08689017,2297.6,2297.5,3.36151447]
[1726549944665,0.08689017,2297.6,2297.5,3.3620659]
[1726549947760,0.08689017,2297.6,2297.5,4.26716473]
[1726549947964,0.08689017,2297.6,2297.5,4.26690035]
[1726549948167,0.08689017,2297.6,2297.5,3.36180152]
[1726549949262,0.08689017,2297.6,2297.5,4.26690035]
[1726549949565,0.08689017,2297.6,2297.5,3.36180152]
[1726549950842,0.08689017,2297.6,2297.5,4.26690035]
[1726549952573,0.08689017,2297.6,2297.5,4.26698098]
[1726549957567,0.08689017,2297.6,2297.5,4.26733345]
[1726549957976,6.8741437,2297.9,2297.5,4.26733345]
[1726549958173,0.68741437,2297.8,2297.6,3.36223462]
[1726549958503,0.68741437,2297.8,2297.5,0.90509883]
[1726549958660,0.68741437,2297.8,2297.6,3.36219208]
[1726549958860,0.68741437,2297.8,2297.5,0.90509883]
[1726549959063,6.8741437,2297.9,2297.6,3.36202282]
[1726549959260,6.8741437,2297.9,2297.5,0.90509883]
[1726549959635,6.8741437,2297.9,2297.6,3.36196255]
[1726549959799,6.8741437,2297.9,2297.5,0.90509883]
[1726549959996,6.8741437,2297.9,2297.6,3.36186998]
[1726549960196,8.74371707,2297.9,2297.5,0.90509883]
[1726549960404,8.74371707,2297.9,2297.6,3.36190088]
[1726549960610,8.74371707,2297.9,2297.5,0.90509883]
[1726549960777,8.74371707,2297.9,2297.6,3.36194815]
[1726549960978,4.39182707,2297.9,2297.7,1.34473831]
[1726549961302,4.39182707,2297.9,2297.7,4.35214]
[1726549961303,2.5222537,2297.9,2297.7,4.35214]
[1726549961515,0.0382537,2297.9,2297.8,13.50851896]
[1726549961696,0.0382537,2297.9,2297.8,16.23400773]
[1726549962011,0.0382537,2297.9,2297.8,21.72038746]
[1726549962365,0.0382537,2297.9,2297.8,17.67349336]
[1726549962608,0.0382537,2297.9,2297.8,21.71734165]
[1726549964328,0.11184521,2297.9,2297.8,21.71734165]
[1726549964509,0.0382537,2297.9,2297.8,18.58283153]
[1726549964955,0.11184521,2297.9,2297.8,18.58283153]
[1726549965256,0.0382537,2297.9,2297.8,18.58283153]
[1726549965451,0.11182457,2297.9,2297.8,18.58283153]
[1726549965621,0.0382537,2297.9,2297.8,18.58283153]
[1726549965813,0.11184521,2297.9,2297.8,18.58283153]
[1726549967327,0.11184521,2297.9,2297.8,18.57729323]
[1726549969362,0.11184521,2297.9,2297.8,17.66795506]
[1726549972070,0.11184521,2297.9,2297.8,17.66518558]
[1726549977679,0.11184521,2297.9,2297.8,15.31958558]
[1726549978352,0.11184521,2297.9,2297.8,13.3084891]
[1726549978647,0.11184521,2297.9,2297.8,3.16112093]
[1726549978862,0.11184521,2297.9,2297.8,1.34073099]
[1726549979096,0.11184521,2297.9,2297.7,5.79554817]
[1726549987020,0.11184521,2297.9,2297.7,1.44340817]
[1726549987253,0.11184521,2297.9,2297.7,4.35216]
[1726549987380,0.11184521,2297.9,2297.7,5.79556817]
[1726549993935,0.11184521,2297.9,2297.7,1.44340817]
[1726549996446,0.11184521,2297.9,2297.8,1.34005939]
[1726549996599,0.11184521,2297.9,2297.7,1.44340817]
[1726549998645,0.11184521,2297.9,2297.8,1.34038363]
[1726549999440,0.11184521,2297.9,2297.8,3.35108126]
[1726549999635,0.11184521,2297.9,2297.8,3.35123397]
[1726550004536,0.11184521,2297.9,2297.8,4.26057214]
[1726550004916,0.11184521,2297.9,2297.8,4.2634824]
[1726550006751,0.11184521,2297.9,2297.8,3.35414423]
[1726550007108,0.11184521,2297.9,2297.8,14.54020423]
[1726550007335,0.11184521,2297.9,2297.8,18.89179923]
[1726550007647,0.11184521,2297.9,2297.8,14.53981923]
[1726550007950,0.11184521,2297.9,2297.8,16.3500169]
[1726550008545,0.11184521,2297.9,2297.8,14.53981923]
[1726550008711,0.11184521,2297.9,2297.8,15.9041322]
[1726550009339,0.11184521,2297.9,2297.8,15.90704795]
[1726550010618,0.11184521,2297.9,2297.8,15.90697702]
[1726550013373,0.11184521,2297.9,2297.8,13.42487702]
[1726550014230,0.11184521,2297.9,2297.8,13.42510681]
[1726550015332,0.11184521,2297.9,2297.8,12.06086477]
[1726550015689,0.11184521,2297.9,2297.8,13.42518114]
[1726550017652,0.11184521,2297.9,2297.8,20.19256114]
[1726550017873,0.11184521,2297.9,2297.8,20.63844244]
[1726550019162,0.11184521,2297.9,2297.8,20.63816732]
[1726550020888,0.11184521,2297.9,2297.8,16.41256965]
[1726550021499,0.11184521,2297.9,2297.8,18.22276732]
[1726550021997,0.11184521,2297.9,2297.8,16.41256965]
[1726550022304,0.11184521,2297.9,2297.8,18.22276732]
[1726550022960,0.11184521,2297.9,2297.8,16.41256965]
[1726550023301,0.11184521,2297.9,2297.8,18.22276732]
[1726550028724,0.11184521,2297.9,2297.8,18.2223793]
[1726550030218,0.11184521,2297.9,2297.8,20.4883793]
[1726550033626,0.11184521,2297.9,2297.8,20.48769265]
[1726550038638,0.11184521,2297.9,2297.8,20.48745594]
[1726550041899,0.11184521,2297.9,2297.8,20.48844859]
[1726550042730,0.11184521,2297.9,2297.8,18.22244859]
[1726550046648,0.11184521,2297.9,2297.8,18.2229561]
[1726550051559,0.11184521,2297.9,2297.8,18.22324334]
[1726550051930,0.11184521,2297.9,2297.8,20.54654334]
[1726550052126,2.4885,2298.4,2298.1,4.35125]
[1726550052331,2.4885,2298.4,2298.3,1.44340817]
[1726550052575,2.4885,2298.4,2298.3,4.80089884]
[1726550052779,2.4885,2298.4,2298.3,5.71031812]
[1726550052944,2.3547537,2298.6,2298.3,10.06135812]
[1726550053121,2.3547537,2298.6,2298.4,1.34299627]
[1726550053122,0.0382537,2298.6,2298.4,1.34299627]
[1726550053338,2.3547537,2298.6,2298.5,5.70776804]
[1726550053532,2.3547537,2298.6,2298.5,4.79834876]
[1726550053866,2.3547537,2298.6,2298.5,2.7854155]
[1726550054239,2.3547537,2298.6,2298.5,7.1360755]
[1726550054567,2.3547537,2298.6,2298.5,5.79406817]
[1726550055664,2.3547537,2298.6,2298.5,1.44340817]
[1726550058501,2.3547537,2298.6,2298.5,2.783498]
[1726550059012,2.3547537,2298.6,2298.5,1.44340817]
[1726550059773,2.42209231,2298.6,2298.5,1.44340817]
[1726550068473,2.42209231,2298.6,2298.3,4.35091]
[1726550068672,2.42209231,2298.6,2298.3,10.14527817]
[1726550068870,2.42209231,2298.6,2298.3,5.79431817]
[1726550069097,2.42209231,2298.6,2298.3,4.35091]
[1726550069302,2.3929,2298.4,2298.1,0.90941928]
[1726550069486,2.3929,2298.4,2298.2,1.33945578]
[1726550069684,0.06483236,2298.3,2298.0,6.70433745]
[1726550069979,0.06483236,2298.3,2298.1,1.33961716]
[1726550070178,0.06483236,2298.3,2298.0,6.70433745]
[1726550070409,0.06483236,2298.3,2298.1,3.34919188]
[1726550070608,0.06483236,2298.3,2298.0,6.70433745]
[1726550070609,0.06483236,2298.3,2298.0,5.79491817]
[1726550070796,0.06483236,2298.3,2298.1,3.34922478]
[1726550071019,0.06483236,2298.3,2297.9,0.90941928]
[1726550071020,2.3445,2298.1,2297.9,0.90941928]
[1726550071197,0.06453432,2298.0,2297.8,6.70478745]
[1726550071403,0.06453432,2298.0,2297.9,3.34989555]
[1726550071710,0.06453432,2298.0,2297.9,1.33995822]
[1726550072515,0.06453432,2298.0,2297.8,2.68550381]
[1726550073692,0.06453432,2298.0,2297.8,1.44340817]
[1726550077987,0.06453432,2298.0,2297.6,5.26175928]
[1726550078228,0.06453432,2298.0,2297.8,1.44340817]
[1726550078733,2.4852,2297.9,2297.6,1.44340817]
[1726550079139,6.83701,2297.9,2297.6,1.44340817]
[1726550079423,0.06401903,2297.8,2297.6,1.44340817]
[1726550085200,2.4902,2297.7,2297.6,1.44340817]
[1726550085426,2.55412698,2297.7,2297.6,1.44340817]
[1726550088137,0.06392698,2297.7,2297.6,1.44340817]
[1726550088507,2.3851,2297.9,2297.6,1.44340817]
[1726550088705,0.06255862,2297.7,2297.6,1.44340817]
[1726550088945,2.3851,2297.9,2297.6,1.44340817]
[1726550089111,0.06255862,2297.7,2297.6,1.44340817]
[1726550089661,6.73691,2297.9,2297.6,1.44340817]
[1726550089951,0.06255862,2297.7,2297.6,1.44340817]
[1726550090103,6.73691,2297.9,2297.6,1.44340817]
[1726550090300,0.06255862,2297.7,2297.6,1.44340817]
[1726550090549,6.73691,2297.9,2297.6,1.44340817]
[1726550090709,0.06255862,2297.7,2297.6,1.44340817]
[1726550090913,6.73691,2297.9,2297.6,1.44340817]
[1726550091114,0.06255862,2297.7,2297.6,1.44340817]
[1726550091320,6.73691,2297.9,2297.6,1.44340817]
[1726550091551,0.06255862,2297.7,2297.6,1.44340817]
[1726550091737,6.73691,2297.9,2297.6,1.44340817]
[1726550091946,0.06255862,2297.7,2297.6,1.44340817]
[1726550092109,6.73691,2297.9,2297.6,1.44340817]
[1726550092316,0.06255862,2297.7,2297.6,1.44340817]
[1726550092515,6.73691,2297.9,2297.6,1.44340817]
[1726550092747,0.06255862,2297.7,2297.6,1.44340817]
[1726550092954,6.73691,2297.9,2297.6,1.44340817]
[1726550093150,0.06255862,2297.7,2297.6,1.44340817]
[1726550093321,6.73691,2297.9,2297.6,1.44340817]
[1726550093514,0.06253509,2297.7,2297.6,1.44340817]
[1726550093713,6.73691,2297.9,2297.6,1.44340817]
[1726550093969,0.06253509,2297.7,2297.4,1.44340817]
[1726550094250,0.06239276,2297.6,2297.4,1.44340817]
[1726550095356,0.06239276,2297.6,2297.3,5.79624817]
[1726550097807,0.06239276,2297.6,2297.3,6.8675874]
[1726550098351,0.06239276,2297.6,2297.3,5.79624817]
[1726550101262,0.06239276,2297.6,2297.5,1.44340817]
[1726550101747,4.35176,2298.0,2297.5,5.79586817]
[1726550101936,4.35173,2298.0,2297.7,1.44340817]
[1726550102163,6.68664,2298.1,2297.7,1.44340817]
[1726550102361,4.35164,2298.0,2297.7,1.44340817]
[1726550103059,6.68664,2298.1,2297.9,1.44340817]
[1726550103060,2.3352,2298.1,2297.9,1.44340817]
[1726550103236,2.3125,2298.3,2297.9,8.22583817]
[1726550103472,6.66327,2298.5,2298.1,5.79480817]
[1726550103744,2.3125,2298.5,2298.1,5.79480817]
[1726550104079,2.3125,2298.5,2298.1,5.79470817]
[1726550104376,0.0382537,2298.6,2298.3,1.44340817]
[1726550105085,0.0382537,2298.6,2298.3,5.79432817]
[1726550105377,0.0382537,2298.6,2298.5,1.44340817]
[1726550105938,0.0382537,2298.6,2298.5,3.87710817]
[1726550106171,0.10026852,2298.6,2298.5,3.87710817]
[1726550106380,0.0382537,2298.6,2298.5,3.87710817]
[1726550106546,0.10026852,2298.6,2298.5,3.87710817]
[1726550107230,0.10026852,2298.6,2298.5,1.44340817]
[1726550107574,0.10026852,2298.6,2298.3,8.22802817]
[1726550108576,2.4589,2298.5,2298.2,3.0]
[1726550108875,4.41270083,2298.4,2297.9,6.78536]
[1726550109220,4.41270083,2298.4,2298.0,7.0]
[1726550109492,4.41270083,2298.4,2298.0,4.35156]
[1726550110038,4.41270083,2298.4,2297.9,8.22876817]
[1726550110270,2.4456,2298.3,2297.8,4.35187]
[1726550110503,4.35125,2298.2,2297.8,1.44340817]
[1726550110786,4.41288425,2298.2,2297.8,1.44340817]
[1726550111884,4.41288425,2298.2,2297.8,5.79538817]
[1726550112174,0.06163425,2298.2,2297.8,5.79538817]
[1726550112339,0.06163425,2298.2,2298.0,1.44340817]
[1726550112530,6.79682,2298.3,2298.0,1.44340817]
[1726550112786,0.06154223,2298.1,2298.0,1.44340817]
[1726550113006,4.35087,2298.4,2298.0,1.44340817]
[1726550113278,4.35087,2298.4,2297.9,8.70344]
[1726550113279,4.35093,2298.4,2298.2,1.44340817]
[1726550113484,0.06167916,2298.3,2298.2,1.44340817]
[1726550114383,6.79638,2298.5,2298.2,1.44340817]
[1726550114535,0.06167916,2298.3,2298.2,1.44340817]
[1726550114738,6.79638,2298.5,2298.2,1.44340817]
[1726550115269,0.06052117,2298.4,2298.2,1.44340817]
[1726550119349,4.3887737,2298.6,2298.2,2.27577899]
[1726550119560,0.06042916,2298.3,2298.2,1.44340817]
[1726550119783,4.3887737,2298.6,2298.2,1.44340817]
[1726550120240,0.06061316,2298.5,2298.2,1.44340817]
[1726550122079,2.387,2298.4,2298.2,1.44340817]
[1726550122282,2.44741262,2298.4,2298.2,1.44340817]
[1726550122442,6.79837262,2298.4,2298.0,4.44340817]
[1726550125141,6.79837262,2298.4,2298.0,1.44340817]
[1726550126058,6.79827262,2298.4,2298.0,1.44340817]
[1726550128343,6.79827262,2298.4,2298.0,5.79499817]
[1726550136421,6.79827262,2298.4,2298.0,5.78781104]
[1726550138602,6.79827262,2298.4,2298.1,2.3076]
[1726550138603,0.06041262,2298.4,2298.1,2.3076]
[1726550140800,4.41128262,2298.4,2298.1,2.3076]
[1726550142164,0.06041262,2298.4,2298.1,2.3076]
[1726550143605,2.2589,2298.3,2298.0,2.34564032]
[1726550143935,0.06024743,2298.2,2298.0,1.43622104]
[1726550144145,2.2589,2298.3,2298.0,1.43622104]
[1726550144458,0.0601554,2298.1,2297.9,7.58076928]
[1726550144597,6.60994,2298.3,2298.0,3.3508315]
[1726550144798,6.60994,2298.3,2298.1,1.34033359]
[1726550144997,6.60994,2298.3,2297.9,7.58076928]
[1726550145206,6.60994,2298.3,2298.0,3.35082148]
[1726550145397,6.60994,2298.3,2298.1,3.35161485]
[1726550145617,6.60994,2298.3,2298.0,0.90941928]
[1726550145842,6.60994,2298.3,2298.1,3.35208753]
[1726550145998,6.60994,2298.3,2298.0,0.90941928]
[1726550146197,6.60994,2298.3,2298.1,3.35209643]
[1726550146509,11.07003,2298.5,2298.0,2.35282745]
[1726550146711,11.07002,2298.5,2298.1,3.35173094]
[1726550146931,4.35086,2298.4,2298.0,6.70434745]
[1726550147128,4.35086,2298.4,2298.1,3.35164343]
[1726550147341,6.71927,2298.5,2298.2,1.34065737]
[1726550147549,11.07007,2298.5,2298.1,5.26081928]
[1726550147710,6.71927,2298.5,2298.2,3.35273475]
[1726550147905,0.0382537,2298.6,2298.3,5.69197825]
[1726550148125,0.0382537,2298.6,2298.3,5.49317432]
[1726550148337,0.0382537,2298.6,2298.4,1.34089332]
[1726550148536,0.0382537,2298.6,2298.3,5.49317432]
[1726550148705,0.0382537,2298.6,2298.4,1.34116624]
[1726550149026,0.0382537,2298.6,2298.4,1.44340817]
[1726550149234,0.0382537,2298.6,2298.5,2.4204]
[1726550150214,0.0382537,2298.6,2298.4,1.44340817]
[1726550151224,0.06067734,2298.5,2298.4,1.44340817]
[1726550151547,0.06067734,2298.5,2298.4,2.78449417]
[1726550153451,0.06067734,2298.5,2298.4,1.341086]
[1726550154423,6.79403734,2298.5,2298.4,1.341086]
[1726550154644,7.91231544,2298.5,2298.1,9.01430745]
[1726550154829,7.91231544,2298.5,2298.2,3.3540513]
[1726550155155,7.91231544,2298.5,2298.1,9.01430745]
[1726550155456,7.91231544,2298.5,2298.2,3.35401277]
[1726550155664,7.91231544,2298.5,2298.1,9.01430745]
[1726550155855,7.91231544,2298.5,2298.2,3.35411318]
[1726550156034,7.91231544,2298.5,2298.1,9.01430745]
[1726550156239,7.91231544,2298.5,2298.2,3.35406847]
[1726550156432,7.91231544,2298.5,2298.1,9.01430745]
[1726550156637,7.91231544,2298.5,2298.2,3.35417468]
[1726550156837,7.91231544,2298.5,2298.1,9.01430745]
[1726550157040,7.91231544,2298.5,2298.2,3.3541598]
[1726550157238,7.91231544,2298.5,2298.1,9.01430745]
[1726550157458,7.91231544,2298.5,2298.2,3.35447308]
[1726550157666,7.91231544,2298.5,2298.3,1.34178923]
[1726550157865,7.91231544,2298.5,2298.1,9.01430745]
[1726550158067,7.91231544,2298.5,2298.2,3.3545488]
[1726550158241,7.91231544,2298.5,2298.3,1.34181952]
[1726550158442,7.91231544,2298.5,2298.1,9.01430745]
[1726550158707,7.91231544,2298.5,2298.2,3.35487666]
[1726550158857,7.91231544,2298.5,2298.3,1.34195066]
[1726550159055,7.91231544,2298.5,2298.1,9.01430745]
[1726550159233,7.91231544,2298.5,2298.2,3.35487158]
[1726550159455,7.91231544,2298.5,2298.3,1.34194863]
[1726550159659,7.91231544,2298.5,2298.1,9.01430745]
[1726550159871,7.91231544,2298.5,2298.2,3.35476358]
[1726550160098,7.91231544,2298.5,2298.3,1.34190543]
[1726550160299,7.91231544,2298.5,2298.1,4.66292745]
[1726550160509,7.91231544,2298.5,2298.2,4.26373235]
[1726550160800,1.23010591,2298.4,2298.3,1.34172523]
[1726550161092,1.29074147,2298.4,2298.3,1.34172523]
[1726550162614,0.06063556,2298.4,2298.3,1.34172523]
[1726550162997,0.06063556,2298.4,2298.3,3.35413194]
[1726550163214,0.06063556,2298.4,2298.1,2.35282745]
[1726550163515,0.06063556,2298.4,2298.2,4.26389638]
[1726550163819,5.52978549,2298.4,2298.1,0.90941928]
[1726550164022,5.52978549,2298.4,2298.2,3.35475677]
[1726550164175,5.52978549,2298.4,2298.1,0.90941928]
[1726550164377,5.52978549,2298.4,2298.0,8.71557892]
[1726550164378,5.52978549,2298.4,2298.2,1.34190162]
[1726550164583,1.22631455,2298.3,2298.1,0.90941928]
[1726550164783,1.28682044,2298.3,2298.2,1.34191524]
[1726550165422,0.06050589,2298.3,2298.2,3.35472878]
[1726550165778,2.3827,2298.5,2298.2,5.82772878]
[1726550165985,4.3887937,2298.6,2298.3,4.79793465]
[1726550166277,0.0382537,2298.6,2298.3,1.44340817]
[1726550166492,0.06069535,2298.5,2298.4,1.34157581]
[1726550167116,0.06069535,2298.5,2298.4,1.34167733]
[1726550167280,0.06069535,2298.5,2298.3,1.44340817]
[1726550167684,0.06069535,2298.5,2298.4,1.34158417]
[1726550167886,0.06069535,2298.5,2298.3,1.44340817]
[1726550168104,0.06069535,2298.5,2298.4,1.3416092]
[1726550168415,0.06069535,2298.5,2298.3,1.44340817]
[1726550168818,0.06069535,2298.5,2298.2,12.08465928]
[1726550169120,0.06069535,2298.5,2298.3,3.3541048]
[1726550169315,0.06069535,2298.5,2298.2,7.73353928]
[1726550169495,0.06069535,2298.5,2298.3,3.3540167]
[1726550169689,0.06069535,2298.5,2298.2,12.08467928]
[1726550169919,0.06069535,2298.5,2298.3,3.35402722]
[1726550170108,0.06069535,2298.5,2298.4,1.34157497]
[1726550170309,0.06069535,2298.5,2298.2,12.08466928]
[1726550170482,0.06069535,2298.5,2298.3,3.35397106]
[1726550170692,0.06069535,2298.5,2298.4,1.34154284]
[1726550173235,0.06069535,2298.5,2298.4,3.35356045]
[1726550173441,0.06069535,2298.5,2298.4,16.18702613]
[1726550173735,0.06069535,2298.5,2298.4,12.74521754]
[1726550178310,0.06069535,2298.5,2298.4,12.74371416]
[1726550178527,0.06069535,2298.5,2298.4,10.91914848]
[1726550178817,0.06069535,2298.5,2298.4,10.0097292]
[1726550179023,0.06069535,2298.5,2298.4,10.91914848]
[1726550182239,0.06069535,2298.5,2298.4,10.0097292]
[1726550182739,0.06069535,2298.5,2298.4,10.91914848]
[1726550182911,0.06069535,2298.5,2298.4,10.0097292]
[1726550183125,0.06069535,2298.5,2298.4,10.9183209]
[1726550184237,0.06069535,2298.5,2298.4,17.0768577]
[1726550184648,0.06069535,2298.5,2298.4,16.16743842]
[1726550184804,0.06069535,2298.5,2298.4,20.21160086]
[1726550185342,0.06069535,2298.5,2298.4,16.86074924]
[1726550185507,0.06069535,2298.5,2298.4,15.52079753]
[1726550185728,0.06069535,2298.5,2298.4,10.04178181]
[1726550185917,0.06069535,2298.5,2298.4,12.95964008]
[1726550186349,0.06069535,2298.5,2298.4,8.60879008]
[1726550186524,0.06069535,2298.5,2298.4,7.26870827]
[1726550189907,0.06069535,2298.5,2298.4,6.36097272]
[1726550193084,0.06069535,2298.5,2298.4,4.35085]
[1726550196437,0.06069535,2298.5,2298.4,8.07448319]
[1726550196645,0.06069535,2298.5,2298.4,7.98747582]
[1726550197142,0.06069535,2298.5,2298.4,6.74035]
[1726550198690,0.06069535,2298.5,2298.4,4.35085]
[1726550203106,0.06069535,2298.5,2298.4,7.70142541]
[1726550204354,0.06069535,2298.5,2298.4,8.60928331]
[1726550206150,0.06069535,2298.5,2298.4,8.60944153]
[1726550207055,0.06069535,2298.5,2298.4,12.96029153]
[1726550207291,0.06069535,2298.5,2298.4,14.9151798]
[1726550207783,0.06069535,2298.5,2298.4,10.5643298]
[1726550209506,0.06069535,2298.5,2298.4,8.60944153]
[1726550210043,0.06069535,2298.5,2298.4,7.70158363]
[1726550210894,2.46709535,2298.5,2298.4,7.70158363]
[1726550211094,2.46709535,2298.5,2298.4,7.70318368]
[1726550211794,0.06069535,2298.5,2298.4,7.70318368]
[1726550212240,0.06069535,2298.5,2298.4,8.61104158]
[1726550214299,0.06069535,2298.5,2298.4,12.96189158]
[1726550214907,0.06069535,2298.5,2298.4,12.96263521]
[1726550215537,0.06069535,2298.5,2298.4,16.09873899]
[1726550215743,0.06069535,2298.5,2298.4,18.45152687]
[1726550219512,0.06069535,2298.5,2298.4,18.90545582]
[1726550219741,0.06069535,2298.5,2298.4,21.90545582]
[1726550219952,0.0382537,2298.6,2298.4,24.79442364]
[1726550220258,0.0382537,2298.6,2298.5,26.42024277]
[1726550220659,0.0382537,2298.6,2298.5,26.42170161]
[1726550220951,0.0382537,2298.6,2298.5,30.77236161]
[1726550221108,0.0382537,2298.6,2298.5,29.1783774]
[1726550221311,0.0382537,2298.6,2298.5,31.44988635]
[1726550221507,0.0382537,2298.6,2298.5,30.77234084]
[1726550221749,0.0382537,2298.6,2298.5,31.44988659]
[1726550221952,0.0382537,2298.6,2298.5,30.77234084]
[1726550222116,0.0382537,2298.6,2298.5,25.14768547]
[1726550222312,0.0382537,2298.6,2298.5,28.49825739]
[1726550222765,0.0382537,2298.6,2298.5,32.49825739]
[1726550222919,0.0382537,2298.6,2298.5,34.76803727]
[1726550223108,0.0382537,2298.6,2298.5,34.31375606]
[1726550223413,0.0382537,2298.6,2298.5,32.49825739]
[1726550223561,0.45561128,2298.9,2298.8,4.35009]
[1726550223728,0.45561128,2298.9,2298.8,10.051759]
[1726550224126,0.45561128,2298.9,2298.8,10.05101005]
[1726550225824,0.45561128,2298.9,2298.8,9.14332114]
[1726550226558,0.45561128,2298.9,2298.8,13.49341114]
[1726550226748,0.45561128,2298.9,2298.8,15.39465705]
[1726550227755,0.51034134,2298.9,2298.8,15.39465705]
[1726550228852,0.51034134,2298.9,2298.8,15.39165971]
[1726550229966,0.51034134,2298.9,2298.8,11.04156971]
[1726550230169,0.51034134,2298.9,2298.8,9.1403238]
[1726550230370,0.51034134,2298.9,2298.8,7.13222842]
[1726550231374,2.76664134,2298.9,2298.8,1.33873025]
[1726550231585,2.76664134,2298.9,2298.7,3.0]
[1726550234044,2.76664134,2298.9,2298.7,7.35024]
[1726550234376,2.76664134,2298.9,2298.7,7.35026]
[1726550234915,2.76664134,2298.9,2298.7,4.35026]
[1726550235626,3.47826047,2298.9,2298.5,5.25828891]
[1726550235774,2.3262,2298.8,2298.6,3.34794933]
[1726550235976,0.05459345,2298.7,2298.5,11.05219708]
[1726550236225,2.3262,2298.8,2298.6,3.34800425]
[1726550236405,0.05459345,2298.7,2298.5,11.05219708]
[1726550236607,2.3262,2298.8,2298.6,3.34793293]
[1726550236914,0.05459031,2298.7,2298.5,6.70164708]
[1726550237120,0.05459031,2298.7,2298.5,5.79395817]
[1726550237271,2.3262,2298.8,2298.5,5.79395817]
[1726550237473,0.05459031,2298.7,2298.5,5.79395817]
[1726550237902,2.3262,2298.8,2298.5,5.79395817]
[1726550238105,0.0544983,2298.6,2298.5,5.79395817]
[1726550238316,3.03935413,2298.8,2298.5,9.14247094]
[1726550238535,0.0544983,2298.6,2298.5,5.79395817]
[1726550238695,2.3262,2298.8,2298.5,9.1424517]
[1726550238879,0.0544983,2298.6,2298.5,5.79395817]
[1726550239086,2.3262,2298.8,2298.5,9.14241582]
[1726550239374,2.3262,2298.8,2298.5,5.79395817]
[1726550239624,0.05459031,2298.7,2298.5,5.79395817]
[1726550240042,2.3262,2298.8,2298.5,5.79395817]
[1726550240352,0.05453383,2298.7,2298.5,5.79395817]
[1726550240717,2.3262,2298.8,2298.5,5.79395817]
[1726550240913,0.05444181,2298.6,2298.5,5.79395817]
[1726550241219,0.05444181,2298.6,2298.5,9.14294325]
[1726550241397,2.3262,2298.8,2298.5,9.14294325]
[1726550241604,0.05453383,2298.7,2298.5,5.79395817]
[1726550241829,2.3262,2298.8,2298.5,5.79395817]
[1726550242057,0.05453383,2298.7,2298.5,5.79395817]
[1726550242229,2.3262,2298.8,2298.5,5.79395817]
[1726550242434,0.05453383,2298.7,2298.6,1.33970742]
[1726550242744,2.3262,2298.8,2298.5,5.79395817]
[1726550242899,0.05453383,2298.7,2298.5,5.79395817]
[1726550243318,2.3262,2298.8,2298.6,1.33970732]
[1726550243624,2.3262,2298.8,2298.5,5.79395817]
[1726550243808,0.05453383,2298.7,2298.6,1.33965653]
[1726550244004,2.3262,2298.8,2298.5,5.79395817]
[1726550244204,0.05454952,2298.7,2298.5,5.79395817]
[1726550244427,2.3262,2298.8,2298.5,5.79395817]
[1726550244633,0.05454952,2298.7,2298.5,5.79395817]
[1726550244832,2.3262,2298.8,2298.5,5.79395817]
[1726550245038,0.05454952,2298.7,2298.5,5.79395817]
[1726550245362,2.3262,2298.8,2298.5,5.79395817]
[1726550245981,0.05454952,2298.7,2298.5,5.79395817]
[1726550246254,2.3262,2298.8,2298.5,5.79395817]
[1726550246451,0.05454952,2298.7,2298.5,5.79395817]
[1726550246659,2.3262,2298.8,2298.5,5.79395817]
[1726550246820,0.05454952,2298.7,2298.5,5.79395817]
[1726550247151,2.3262,2298.8,2298.5,5.79395817]
[1726550247361,0.05445751,2298.6,2298.5,5.79395817]
[1726550247656,0.05445751,2298.6,2298.5,9.14408527]
[1726550247823,2.3262,2298.8,2298.5,9.14408527]
[1726550248160,0.05454952,2298.7,2298.5,5.79395817]
[1726550248651,2.3262,2298.8,2298.5,5.79395817]
[1726550248652,2.3262,2298.8,2298.6,1.34032862]
[1726550248860,2.3262,2298.8,2298.5,5.79395817]
[1726550250982,2.3262,2298.8,2298.5,5.79403817]
[1726550253097,2.3262,2298.8,2298.5,1.44340817]
[1726550254674,2.4273,2298.7,2298.3,0.90768891]
[1726550254878,2.4273,2298.7,2298.1,1.81537782]
[1726550254879,6.77796,2298.5,2298.1,0.90768891]
[1726550255072,6.77796,2298.5,2298.2,3.35224121]
[1726550255323,6.77796,2298.5,2298.1,1.44340817]
[1726550255483,6.77796,2298.5,2298.2,3.35176533]
[1726550255683,2.4273,2298.5,2298.3,1.44340817]
[1726550256132,0.05274165,2298.4,2298.3,1.44340817]
[1726550256424,0.05274165,2298.4,2298.3,2.7847931]
[1726550256916,0.05274165,2298.4,2298.3,4.79694512]
[1726550257248,0.05274165,2298.4,2298.3,2.7847931]
[1726550257420,0.05274165,2298.4,2298.3,1.44340817]
[1726550259251,0.05274165,2298.4,2298.3,2.78484971]
[1726550259447,2.4273,2298.5,2298.3,4.02435557]
[1726550259761,0.05210828,2298.4,2298.3,7.03382403]
[1726550259923,0.05210828,2298.4,2298.3,11.29504964]
[1726550260111,2.4949,2298.7,2298.4,4.35079]
[1726550260453,2.4949,2298.7,2298.5,1.34141468]
[1726550260765,2.4949,2298.7,2298.4,6.2882273]
[1726550260900,2.4949,2298.7,2298.5,1.34110414]
[1726550261101,2.4949,2298.7,2298.4,6.2882273]
[1726550261741,4.80551295,2298.9,2298.4,6.2882273]
[1726550261742,2.93528295,2298.9,2298.5,9.14717434]
[1726550261945,2.93528295,2298.9,2298.5,7.21694219]
[1726550262497,0.45558295,2298.9,2298.7,5.79367817]
[1726550262798,0.45558295,2298.9,2298.7,1.44340817]
[1726550263570,2.3753,2298.8,2298.5,5.79393817]
[1726550263724,0.45558295,2298.9,2298.5,5.79393817]
[1726550263929,0.45558295,2298.9,2298.6,5.69163904]
[1726550264129,0.45558295,2298.9,2298.6,4.35046]
[1726550265150,0.45558295,2298.9,2298.5,6.83906421]
[1726550265350,2.4726,2298.8,2298.4,7.64553891]
[1726550265656,2.4726,2298.8,2298.5,4.79759093]
[1726550265850,2.4726,2298.8,2298.5,5.79405817]
[1726550266260,2.4726,2298.8,2298.5,1.44340817]
[1726550266762,2.4726,2298.8,2298.4,4.35082]
[1726550267103,4.35022,2298.8,2298.5,1.34162451]
[1726550267267,2.3762,2298.7,2298.4,5.79423817]
[1726550267947,2.3762,2298.7,2298.5,1.34139575]
[1726550268152,2.3379,2298.6,2298.2,6.70230708]
[1726550268378,6.6884,2298.6,2298.3,3.35420391]
[1726550268619,6.6884,2298.6,2298.2,5.79461817]
[1726550268809,6.6884,2298.6,2298.3,1.34171542]